fUSD/lending_fUSD_20250526
["ID","MTS","AMOUNT","RATE_DAILY","PERIOD"]
[362417208,1748269834534,-150.0,0.00032288,2]
[362417209,1748269834544,-192.78276272,0.00032309,7]
[362417210,1748269834557,-1140.34594911,0.0003231,5]
[362417211,1748269834567,-1120.78329751,0.0003231,5]
[362417212,1748269834577,-1045.17952159,0.0003231,5]
[362417213,1748269834587,-1121.05696227,0.0003231,5]
[362417214,1748269834597,-893.04449143,0.0003231,5]
[362417215,1748269834608,-150.0,0.00032325,2]
[362417216,1748269834618,-996.24592193,0.00032328,7]
[362417217,1748269834629,-150.0,0.00032329,2]
[362417218,1748269834640,-150.0,0.00032358,2]
[362417219,1748269834651,-1000.0,0.00032359,2]
[362417220,1748269834661,-150.0,0.00032377,2]
[362417221,1748269834671,-1000.0,0.00032382,2]
[362417222,1748269834681,-150.0,0.0003244,2]
[362417223,1748269834691,-150.0,0.00032508,2]
[362417224,1748269834700,-150.0,0.00032509,2]
[362417225,1748269834710,-9231.02459773,0.0003252,2]
[362417226,1748269834720,-150.0,0.00032544,2]
[362417227,1748269834730,-500.0,0.00032548,7]
[362417228,1748269834740,-150.0,0.00032555,2]
[362417229,1748269834751,-150.0,0.0003256,2]
[362417230,1748269834761,-150.0,0.00032633,2]
[362417231,1748269834771,-4000.0,0.0003264,2]
[362417232,1748269834781,-150.0,0.00032651,2]
[362417233,1748269834791,-1000.0,0.00032671,2]
[362417234,1748269834803,-1000.0,0.00032674,2]
[362417235,1748269834813,-150.0,0.00032677,2]
[362417236,1748269834823,-150.0,0.00032685,2]
[362417237,1748269834833,-154.0,0.00032693,2]
[362417238,1748269834844,-150.0,0.00032693,2]
[362417239,1748269834853,-1000.0,0.00032721,2]
[362417240,1748269834863,-732.86015702,0.00032736,2]
[362417241,1748269834873,-150.0,0.00032743,2]
[362417242,1748269834883,-150.0,0.00032751,2]
[362417243,1748269834892,-500.0,0.00032754,7]
[362417244,1748269834903,-150.0,0.00032755,2]
[362417245,1748269834914,-150.0,0.00032774,2]
[362417246,1748269834925,-1000.0,0.00032774,2]
[362417247,1748269834935,-150.0,0.00032783,2]
[362417248,1748269834945,-150.0,0.00032788,2]
[362417249,1748269834955,-150.0,0.00032797,2]
[362417250,1748269834965,-150.0,0.00032805,2]
[362417251,1748269834975,-1000.0,0.00032836,2]
[362417252,1748269834987,-150.0,0.00032838,2]
[362417253,1748269834997,-150.0,0.00032842,2]
[362417254,1748269835007,-500.0,0.00032845,7]
[362417255,1748269835017,-1487.30149265,0.00032864,2]
[362417256,1748269835027,-500.0,0.00032877,2]
[362417257,1748269835036,-150.0,0.00032881,2]
[362417258,1748269835046,-162.380719,0.00032885,2]
[362417259,1748269835056,-223.0315306,0.00032885,2]
[362417260,1748269835066,-1243.57659104,0.00032886,2]
[362417261,1748269835076,-164.31146316,0.00032887,15]
[362417262,1748269835086,-3150.36393636,0.000329,120]
[362417263,1748269835096,-799.8931754,0.000329,120]
[362417264,1748269835107,-2000.0,0.000329,2]
[362417265,1748269835119,-5000.0,0.000329,2]
[362417266,1748269835278,-800.0,0.000329,12]
[362417267,1748269835290,-500.0,0.00032904,2]
[362417268,1748269835300,-150.0,0.00032918,2]
[362417269,1748269835309,-150.0,0.0003293,2]
[362417270,1748269835319,-500.0,0.00032932,2]
[362417271,1748269835329,-150.0,0.0003294,2]
[362417272,1748269835338,-27859.8495918,0.00032954,3]
[362417273,1748269835348,-500.0,0.00032959,2]
[362417274,1748269835358,-150.0,0.0003296,2]
[362417275,1748269835368,-27859.8495918,0.00032963,3]
[362417276,1748269835377,-2759.688249,0.00032964,2]
[362417277,1748269835387,-16229.4590292,0.00032964,2]
[362417278,1748269835396,-53772.3755013,0.00032964,2]
[362417279,1748269835406,-150.0,0.00032967,2]
[362417280,1748269835415,-155.018494,0.00032969,7]
[362417281,1748269835427,-151.0,0.00032969,7]
[362417282,1748269835437,-151.0,0.00032969,7]
[362417283,1748269835447,-151.0,0.00032969,7]
[362417284,1748269835456,-151.0,0.00032969,7]
[362417285,1748269835465,-207.112538,0.00032969,7]
[362417286,1748269835475,-151.0,0.00032969,7]
[362417287,1748269835484,-151.0,0.00032969,7]
[362417288,1748269835494,-300.0,0.00032969,30]
[362417289,1748269835503,-150.0,0.00032973,5]
[362417290,1748269835512,-500.0,0.00032973,5]
[362417291,1748269835522,-150.0,0.00032973,5]
[362417292,1748269835531,-150.0,0.00032973,5]
[362417293,1748269835541,-150.0,0.00032973,5]
[362417294,1748269835551,-500.0,0.00032973,5]
[362417295,1748269835564,-500.0,0.00032973,5]
[362417296,1748269835573,-151.0,0.00032979,7]
[362417297,1748269835583,-158.720293,0.00032979,7]
[362417298,1748269835592,-500.0,0.00032987,2]
[362417299,1748269835602,-151.0,0.00032989,7]
[362417300,1748269835611,-151.0,0.0003299,7]
[362417301,1748269835621,-151.0,0.0003299,7]
[362417302,1748269835630,-151.0,0.0003299,7]
[362417303,1748269835640,-151.0,0.0003299,7]
[362417304,1748269835649,-151.0,0.0003299,7]
[362417305,1748269835659,-151.0,0.0003299,7]
[362417306,1748269835669,-151.0,0.0003299,7]
[362417307,1748269835681,-151.0,0.0003299,7]
[362417308,1748269835690,-151.642201,0.0003299,7]
[362417309,1748269835700,-150.0,0.0003299,2]
[362417310,1748269835709,-55719.6991836,0.0003299,3]
[362417311,1748269835719,-150.0,0.00032996,2]
[362417312,1748269835729,-160.0,0.00033,2]
[362417313,1748269835739,-160.0,0.00033,2]
[362417314,1748269835748,-160.0,0.00033,2]
[362417315,1748269835758,-160.0,0.00033,2]
[362417316,1748269835768,-160.0,0.00033,2]
[362417317,1748269835777,-160.0,0.00033,2]
[362417318,1748269835787,-160.0,0.00033,2]
[362417319,1748269835796,-160.0,0.00033,2]
[362417320,1748269835806,-160.0,0.00033,2]
[362417321,1748269835815,-160.0,0.00033,2]
[362417322,1748269835824,-160.0,0.00033,2]
[362417323,1748269835834,-186.599999,0.00033,2]
[362417324,1748269835843,-500.0,0.00033,60]
[362417325,1748269835853,-160.0,0.00033,2]
[362417326,1748269835864,-160.0,0.00033,2]
[362417327,1748269835874,-503.53755472,0.00033,120]
[362417328,1748269835883,-434.82328547,0.00033,120]
[362417329,1748269835893,-1321.9472213,0.00033,120]
[362417330,1748269835903,-1014.7698249,0.00033,7]
[362417331,1748269835915,-61605.59137944,0.00033,90]
[362417332,1748269837877,-150.0,0.00031867,2]
[362417333,1748269837887,-150.0,0.00031877,2]
[362417334,1748269837897,-150.0,0.00031911,2]
[362417336,1748269837907,-150.0,0.00031968,2]
[362417337,1748269837917,-150.0,0.00032016,2]
[362417338,1748269837928,-150.0,0.00032046,2]
[362417339,1748269837939,-150.0,0.00032052,2]
[362417340,1748269837956,-150.0,0.00032083,2]
[362417341,1748269837966,-150.0,0.00032092,2]
[362417342,1748269837975,-150.0,0.0003214,2]
[362417343,1748269837984,-150.0,0.00032176,2]
[362417344,1748269837994,-150.0,0.00032203,2]
[362417345,1748269838004,-150.0,0.00032259,2]
[362417346,1748269838013,-150.0,0.00032287,2]
[362417347,1748269838022,-150.0,0.0003232,2]
[362417348,1748269838032,-150.0,0.00032333,2]
[362417349,1748269838042,-150.0,0.00032344,2]
[362417350,1748269838051,-150.0,0.00032503,2]
[362417351,1748269838061,-150.0,0.00032537,2]
[362417352,1748269838070,-150.0,0.0003256,2]
[362417353,1748269838079,-150.0,0.00032629,2]
[362417354,1748269838088,-150.0,0.00032639,2]
[362417355,1748269838098,-150.0,0.0003269,2]
[362417356,1748269838107,-150.0,0.00032817,2]
[362417357,1748269838116,-150.0,0.00032916,2]
[362417358,1748269838126,-152.634519,0.0003299,7]
[362417359,1748269838135,-14402.43779785,0.00033,90]
[362417360,1748269838166,-1922.37458657,0.00033,90]
[362417364,1748269840217,-12069.59623614,0.00033,90]
[362417365,1748269840228,-151.0,0.00033,7]
[362417366,1748269840239,-151.0,0.00033,7]
[362417367,1748269840249,-151.0,0.00033,7]
[362417368,1748269840259,-151.0,0.00033,7]
[362417369,1748269840269,-155.259932,0.00033,7]
[362417370,1748269840279,-151.0,0.00033,7]
[362417371,1748269840288,-151.0,0.00033,7]
[362417372,1748269840299,-151.0,0.00033,7]
[362417373,1748269840309,-151.0,0.00033,7]
[362417374,1748269840322,-151.0,0.00033,7]
[362417375,1748269840331,-151.0,0.00033,7]
[362417376,1748269840340,-152.522454,0.00033,7]
[362417377,1748269840351,-151.590186,0.00033,7]
[362417378,1748269840360,-151.0,0.00033,7]
[362417379,1748269840370,-151.0,0.00033,7]
[362417380,1748269840379,-152.439777,0.00033,7]
[362417381,1748269840389,-151.0,0.00033,7]
[362417382,1748269840399,-151.0,0.00033,7]
[362417383,1748269840409,-151.0,0.00033,7]
[362417384,1748269840418,-151.0,0.00033,7]
[362417385,1748269840428,-151.0,0.00033,7]
[362417386,1748269840437,-151.0,0.00033,7]
[362417387,1748269840447,-151.0,0.00033,7]
[362417388,1748269840456,-151.0,0.00033,7]
[362417389,1748269840465,-151.0,0.00033,7]
[362417390,1748269840475,-151.0,0.00033,7]
[362417391,1748269840485,-151.0,0.00033,7]
[362417392,1748269840496,-151.0,0.00033,7]
[362417393,1748269840506,-152.420904,0.00033,7]
[362417394,1748269840515,-154.059749,0.00033,7]
[362417395,1748269840526,-153.487451,0.00033,7]
[362417396,1748269840536,-169.931047,0.00033,7]
[362417397,1748269840546,-169.931047,0.00033,7]
[362417398,1748269840563,-151.0,0.00033,7]
[362417399,1748269840572,-153.051645,0.00033,7]
[362417400,1748269840582,-154.514077,0.00033,7]
[362417401,1748269840592,-151.0,0.00033,7]
[362417402,1748269840602,-161.14074,0.00033,7]
[362417403,1748269840612,-161.14074,0.00033,7]
[362417404,1748269840623,-151.0,0.00033,7]
[362417405,1748269840634,-151.0,0.00033,7]
[362417406,1748269840645,-151.0,0.00033,7]
[362417407,1748269840655,-151.0,0.00033,7]
[362417408,1748269840666,-292.739126,0.00033,7]
[362417409,1748269840675,-151.0,0.00033,7]
[362417410,1748269840685,-151.0,0.00033,7]
[362417411,1748269840695,-151.0,0.00033,7]
[362417412,1748269840707,-151.0,0.00033,7]
[362417413,1748269840722,-151.0,0.00033,7]
[362417414,1748269840732,-151.0,0.00033,7]
[362417415,1748269840741,-151.0,0.00033,7]
[362417416,1748269840751,-151.0,0.00033,7]
[362417417,1748269840761,-244.913816,0.00033,7]
[362417418,1748269840771,-244.913816,0.00033,7]
[362417419,1748269840780,-154.480354,0.00033,7]
[362417420,1748269840791,-244.913816,0.00033,7]
[362417421,1748269840801,-244.913816,0.00033,7]
[362417422,1748269840812,-151.0,0.00033,7]
[362417423,1748269840822,-153.063254,0.00033,7]
[362417424,1748269840831,-151.0,0.00033,7]
[362417425,1748269840840,-151.0,0.00033,7]
[362417426,1748269840850,-158.496658,0.00033,7]
[362417427,1748269840859,-151.0,0.00033,7]
[362417428,1748269840869,-589.40369,0.00033,7]
[362417429,1748269840879,-589.40369,0.00033,7]
[362417430,1748269840889,-3512.32756,0.00033,7]
[362417431,1748269840899,-151.0,0.00033,7]
[362417432,1748269840910,-267.81969,0.00033,7]
[362417433,1748269840920,-3512.32756,0.00033,7]
[362417434,1748269840930,-151.0,0.00033,7]
[362417435,1748269840939,-151.0,0.00033,7]
[362417436,1748269840949,-151.0,0.00033,7]
[362417437,1748269840959,-151.0,0.00033,7]
[362417438,1748269840968,-151.0,0.00033,7]
[362417439,1748269840979,-298.447321,0.00033,7]
[362417440,1748269840988,-151.0,0.00033,7]
[362417441,1748269840999,-151.0,0.00033,7]
[362417442,1748269841009,-151.0,0.00033,7]
[362417443,1748269841019,-151.0,0.00033,7]
[362417444,1748269841028,-216.697461,0.00033,7]
[362417445,1748269841037,-204.029426,0.00033,7]
[362417446,1748269841047,-216.697461,0.00033,7]
[362417447,1748269841056,-151.0,0.00033,7]
[362417448,1748269841066,-153.640937,0.00033,7]
[362417449,1748269841075,-151.0,0.00033,7]
[362417450,1748269841085,-151.0,0.00033,7]
[362417451,1748269841094,-151.0,0.00033,7]
[362417452,1748269841103,-151.0,0.00033,7]
[362417453,1748269841113,-151.0,0.00033,7]
[362417454,1748269841123,-151.0,0.00033,7]
[362417455,1748269841133,-283.431473,0.00033,7]
[362417456,1748269841144,-151.0,0.00033,7]
[362417457,1748269841156,-283.431473,0.00033,7]
[362417458,1748269841165,-151.0,0.00033,7]
[362417459,1748269841174,-151.0,0.00033,7]
[362417460,1748269841184,-500.0,0.00033,5]
[362417461,1748269841193,-200.40224288,0.00033,5]
[362417462,1748269841203,-201.49098696,0.00033,5]
[362417463,1748269841214,-500.0,0.00033,5]
[362417464,1748269841223,-500.0,0.00033,5]
[362417465,1748269841232,-150.0,0.00033006,2]
[362417466,1748269841246,-150.0,0.00033008,2]
[362417467,1748269841257,-4000.0,0.0003301,2]
[362417468,1748269841267,-151.0,0.0003301,7]
[362417469,1748269841276,-151.0,0.0003301,7]
[362417470,1748269841286,-151.0,0.0003301,7]
[362417471,1748269841296,-283.431473,0.0003301,7]
[362417472,1748269841306,-283.431473,0.0003301,7]
[362417473,1748269841315,-150.0,0.00033011,2]
[362417474,1748269841324,-500.0,0.00033014,2]
[362417475,1748269841333,-155.217411,0.00033014,7]
[362417476,1748269841342,-589.40369,0.00033014,7]
[362417477,1748269841352,-169.775283,0.00033014,7]
[362417478,1748269841361,-589.40369,0.00033014,7]
[362417479,1748269841370,-3512.32756,0.00033014,7]
[362417480,1748269841380,-3512.32756,0.00033014,7]
[362417481,1748269841389,-151.0,0.00033014,7]
[362417482,1748269841399,-151.0,0.00033014,7]
[362417483,1748269841408,-151.0,0.00033014,7]
[362417484,1748269841417,-216.697461,0.00033014,7]
[362417485,1748269841428,-216.697461,0.00033014,7]
[362417486,1748269841438,-151.0,0.00033014,7]
[362417487,1748269841447,-151.0,0.00033014,7]
[362417488,1748269841456,-150.0,0.00033015,2]
[362417489,1748269841465,-150.0,0.00033026,2]
[362417490,1748269841475,-500.0,0.00033028,5]
[362417491,1748269841485,-539.1472452,0.00033028,5]
[362417492,1748269841494,-229.56115721,0.00033028,5]
[362417493,1748269841645,-150.0,0.00033035,2]
[362417494,1748269841656,-155.490752,0.00033041,7]
[362417495,1748269841667,-151.0,0.00033041,7]
[362417496,1748269841676,-151.0,0.00033041,7]
[362417497,1748269841686,-151.0,0.00033041,7]
[362417498,1748269841695,-152.310134,0.00033041,7]
[362417499,1748269841704,-151.0,0.00033041,7]
[362417500,1748269841713,-151.0,0.00033041,7]
[362417501,1748269841723,-151.0,0.00033041,7]
[362417502,1748269841734,-500.0,0.00033041,2]
[362417503,1748269841745,-379.79104232,0.00033047,2]
[362417504,1748269841755,-150.0,0.00033055,2]
[362417505,1748269841764,-500.0,0.00033055,5]
[362417506,1748269841774,-500.0,0.00033067,7]
[362417507,1748269841786,-500.0,0.00033069,2]
[362417508,1748269841796,-150.0,0.00033077,2]
[362417509,1748269841808,-150.0,0.0003308,2]
[362417510,1748269841819,-150.0,0.0003308,2]
[362417511,1748269841829,-642.09294678,0.00033083,5]
[362417512,1748269841840,-150.0,0.00033083,2]
[362417513,1748269841851,-151.0,0.00033088,7]
[362417514,1748269841860,-151.0,0.00033088,7]
[362417515,1748269841871,-151.0,0.00033088,7]
[362417516,1748269841880,-151.0,0.00033088,7]
[362417517,1748269841891,-150.0,0.00033089,2]
[362417518,1748269841903,-150.0,0.00033093,2]
[362417519,1748269841914,-150.0,0.00033095,2]
[362417520,1748269841923,-150.0,0.00033095,2]
[362417521,1748269841934,-150.0,0.00033096,2]
[362417522,1748269841943,-150.0,0.00033096,2]
[362417523,1748269841952,-500.0,0.00033096,2]
[362417524,1748269841962,-150.0,0.00033097,2]
[362417525,1748269841971,-359.93,0.000331,7]
[362417526,1748269841980,-150.0,0.00033101,2]
[362417527,1748269841990,-150.0,0.00033103,2]
[362417528,1748269841999,-150.0,0.00033104,2]
[362417529,1748269842009,-150.0,0.00033104,2]
[362417530,1748269842018,-150.0,0.00033105,2]
[362417531,1748269842027,-150.0,0.00033106,2]
[362417532,1748269842037,-150.0,0.00033109,2]
[362417533,1748269842046,-150.0,0.0003311,2]
[362417534,1748269842055,-150.0,0.0003311,2]
[362417535,1748269842064,-150.0,0.0003311,2]
[362417536,1748269842073,-1000.0,0.00033111,2]
[362417537,1748269842083,-150.0,0.00033117,2]
[362417538,1748269842092,-150.0,0.00033117,2]
[362417539,1748269842102,-150.0,0.00033119,2]
[362417540,1748269842111,-1000.0,0.00033119,2]
[362417541,1748269842120,-150.0,0.00033121,2]
[362417542,1748269842130,-150.0,0.00033121,2]
[362417543,1748269842139,-1000.0,0.00033123,2]
[362417544,1748269842148,-500.0,0.00033124,2]
[362417545,1748269842157,-150.0,0.00033124,2]
[362417546,1748269842166,-150.0,0.00033125,2]
[362417547,1748269842175,-150.0,0.00033126,2]
[362417548,1748269842185,-150.0,0.00033129,2]
[362417549,1748269842195,-150.0,0.00033132,2]
[362417550,1748269842205,-150.0,0.00033132,2]
[362417551,1748269842214,-150.0,0.00033137,2]
[362417552,1748269842224,-1000.0,0.00033141,2]
[362417553,1748269842234,-150.0,0.00033146,2]
[362417554,1748269842243,-150.0,0.00033146,2]
[362417555,1748269842253,-150.0,0.00033146,2]
[362417556,1748269842262,-150.0,0.00033148,2]
[362417557,1748269842272,-200.0,0.00033151,2]
[362417558,1748269842282,-500.0,0.00033151,2]
[362417559,1748269842292,-150.0,0.00033156,2]
[362417560,1748269842302,-150.0,0.0003316,2]
[362417561,1748269842312,-150.0,0.00033164,2]
[362417562,1748269842321,-150.0,0.00033168,2]
[362417563,1748269842332,-150.0,0.00033169,2]
[362417564,1748269842342,-150.0,0.00033173,2]
[362417565,1748269842353,-150.0,0.00033174,2]
[362417566,1748269842363,-150.0,0.00033176,2]
[362417567,1748269842373,-150.0,0.00033176,2]
[362417568,1748269842383,-150.0,0.00033177,2]
[362417569,1748269842393,-557.68293893,0.00033178,2]
[362417570,1748269842403,-150.0,0.00033181,2]
[362417571,1748269842412,-150.0,0.00033181,2]
[362417572,1748269842422,-150.0,0.00033186,2]
[362417573,1748269842433,-150.0,0.00033186,2]
[362417574,1748269842443,-150.0,0.00033188,2]
[362417575,1748269842453,-150.0,0.00033191,2]
[362417576,1748269842462,-150.0,0.00033192,2]
[362417577,1748269842472,-150.0,0.000332,2]
[362417578,1748269842482,-27859.8495918,0.00033202,3]
[362417579,1748269842492,-492.3324,0.00033203,2]
[362417580,1748269842501,-150.0,0.00033204,2]
[362417581,1748269842511,-150.0,0.00033207,2]
[362417582,1748269842520,-150.0,0.00033209,2]
[362417583,1748269842530,-150.0,0.00033217,2]
[362417584,1748269842539,-150.0,0.0003322,2]
[362417585,1748269842549,-150.0,0.00033222,2]
[362417586,1748269842562,-150.0,0.00033231,2]
[362417587,1748269842573,-150.0,0.00033233,2]
[362417588,1748269842583,-150.0,0.00033243,2]
[362417589,1748269842593,-150.0,0.00033244,2]
[362417590,1748269842602,-150.0,0.00033248,2]
[362417591,1748269842612,-150.0,0.00033254,2]
[362417592,1748269842623,-1000.0,0.00033257,2]
[362417593,1748269842635,-150.0,0.0003326,2]
[362417594,1748269842646,-730.34953965,0.00033269,2]
[362417595,1748269842655,-150.0,0.00033269,2]
[362417596,1748269842666,-500.0,0.00033272,7]
[362417597,1748269842675,-150.0,0.00033272,2]
[362417598,1748269842685,-150.0,0.00033272,2]
[362417599,1748269842695,-150.0,0.00033283,2]
[362417600,1748269842706,-150.0,0.00033283,2]
[362417601,1748269842716,-150.0,0.00033286,2]
[362417602,1748269842725,-150.0,0.00033287,2]
[362417603,1748269842735,-150.0,0.00033287,2]
[362417604,1748269842746,-150.0,0.00033288,2]
[362417605,1748269842755,-150.0,0.00033305,2]
[362417606,1748269842764,-150.0,0.00033317,2]
[362417607,1748269842775,-151.0,0.00033324,7]
[362417608,1748269842784,-151.0,0.00033324,7]
[362417610,1748269842794,-171.084706,0.00033324,7]
[362417611,1748269842805,-150.0,0.00033327,2]
[362417612,1748269842815,-151.0,0.0003333,7]
[362417613,1748269842824,-151.0,0.0003333,7]
[362417614,1748269842833,-151.725606,0.0003333,7]
[362417615,1748269842842,-244.913816,0.0003333,7]
[362417616,1748269842852,-244.913816,0.0003333,7]
[362417617,1748269842861,-151.0,0.0003333,7]
[362417618,1748269842870,-589.40369,0.0003333,7]
[362417619,1748269842879,-589.40369,0.0003333,7]
[362417620,1748269842889,-3512.32756,0.0003333,7]
[362417621,1748269842898,-3512.32756,0.0003333,7]
[362417622,1748269842907,-151.0,0.0003333,7]
[362417623,1748269842916,-151.0,0.0003333,7]
[362417624,1748269842925,-151.0,0.0003333,7]
[362417625,1748269842936,-151.0,0.0003333,7]
[362417626,1748269842946,-151.0,0.0003333,7]
[362417627,1748269842955,-151.0,0.0003333,7]
[362417628,1748269842965,-151.0,0.0003333,7]
[362417629,1748269842974,-151.0,0.0003333,7]
[362417630,1748269842983,-216.697461,0.0003333,7]
[362417631,1748269842994,-216.697461,0.0003333,7]
[362417632,1748269843005,-151.0,0.0003333,7]
[362417633,1748269843015,-168.35455,0.0003333,7]
[362417634,1748269843025,-151.0,0.0003333,7]
[362417635,1748269843035,-151.0,0.0003333,7]
[362417636,1748269843044,-151.0,0.0003333,7]
[362417637,1748269843055,-283.431473,0.0003333,7]
[362417638,1748269843066,-283.431473,0.0003333,7]
[362417639,1748269843077,-158.914109,0.0003333,7]
[362417640,1748269843087,-150.0,0.00033332,2]
[362417641,1748269843097,-700.0,0.00033333,7]
[362417642,1748269843106,-150.0,0.00033334,2]
[362417643,1748269843116,-150.0,0.00033334,2]
[362417644,1748269843128,-27859.8495918,0.00033335,3]
[362417645,1748269843139,-25561.4739602,0.00033335,3]
[362417646,1748269843148,-161.655417,0.00033335,7]
[362417647,1748269843159,-25561.4739602,0.00033335,3]
[362417648,1748269843170,-150.0,0.00033337,2]
[362417649,1748269843180,-150.0,0.00033339,2]
[362417650,1748269843189,-158.9609818,0.00033339,2]
[362417651,1748269843199,-27859.8495918,0.0003334,3]
[362417652,1748269843209,-151.0,0.00033341,7]
[362417653,1748269843219,-151.0,0.00033341,7]
[362417654,1748269843228,-151.0,0.00033341,7]
[362417655,1748269843237,-215.457015,0.00033341,7]
[362417656,1748269843247,-151.0,0.00033341,7]
[362417657,1748269843256,-281.680477,0.00033341,7]
[362417658,1748269843266,-151.0,0.00033341,7]
[362417659,1748269843276,-151.0,0.00033341,7]
[362417660,1748269843286,-162.672506,0.00033341,7]
[362417661,1748269843297,-151.0,0.00033341,7]
[362417662,1748269843307,-169.931047,0.00033341,7]
[362417663,1748269843316,-169.931047,0.00033341,7]
[362417664,1748269843326,-151.0,0.00033341,7]
[362417665,1748269843336,-151.0,0.00033341,7]
[362417666,1748269843347,-161.14074,0.00033341,7]
[362417667,1748269843357,-161.14074,0.00033341,7]
[362417668,1748269843366,-151.0,0.00033341,7]
[362417669,1748269843376,-151.0,0.00033341,7]
[362417670,1748269843385,-151.0,0.00033341,7]
[362417671,1748269843395,-152.199333,0.00033345,7]
[362417672,1748269843405,-151.0,0.00033345,7]
[362417673,1748269843415,-151.0,0.00033345,7]
[362417674,1748269843424,-942.66582,0.00033345,7]
[362417675,1748269843435,-151.0,0.00033345,7]
[362417676,1748269843445,-942.66582,0.00033345,7]
[362417677,1748269843454,-319.268109,0.00033345,7]
[362417678,1748269843463,-156.610242,0.00033345,7]
[362417679,1748269843473,-319.268109,0.00033345,7]
[362417680,1748269843482,-152.648324,0.00033345,7]
[362417681,1748269843491,-151.0,0.00033345,7]
[362417682,1748269843501,-151.0,0.00033345,7]
[362417683,1748269843511,-151.0,0.00033345,7]
[362417684,1748269843521,-151.0,0.00033345,7]
[362417685,1748269843530,-151.0,0.00033345,7]
[362417686,1748269843539,-151.0,0.00033345,7]
[362417687,1748269843549,-158.738095,0.00033345,7]
[362417688,1748269843560,-151.0,0.00033345,7]
[362417689,1748269843569,-244.16987,0.00033345,7]
[362417690,1748269843578,-151.0,0.00033345,7]
[362417691,1748269843587,-151.0,0.00033345,7]
[362417692,1748269843718,-151.0,0.00033345,7]
[362417693,1748269843728,-151.0,0.00033345,7]
[362417694,1748269843737,-150.0,0.00033346,2]
[362417695,1748269843746,-150.0,0.00033346,2]
[362417696,1748269843756,-150.0,0.00033349,2]
[362417697,1748269843765,-152.668853,0.0003335,7]
[362417698,1748269843774,-153.685466,0.0003335,7]
[362417699,1748269843783,-942.66582,0.0003335,7]
[362417700,1748269843792,-204.733338,0.0003335,7]
[362417701,1748269843802,-942.66582,0.0003335,7]
[362417702,1748269843811,-319.268109,0.0003335,7]
[362417703,1748269843820,-319.268109,0.0003335,7]
[362417704,1748269843830,-151.0,0.0003335,7]
[362417705,1748269843840,-151.0,0.0003335,7]
[362417706,1748269843850,-151.0,0.0003335,7]
[362417707,1748269843859,-151.0,0.0003335,7]
[362417708,1748269843868,-151.0,0.0003335,7]
[362417709,1748269843877,-154.999366,0.0003335,7]
[362417710,1748269843886,-151.0,0.0003335,7]
[362417711,1748269843896,-236.684202,0.0003335,7]
[362417712,1748269843905,-244.913816,0.0003335,7]